[Event "Titled Tuesday Blitz July 20 2021"]
[White "Quintiliano Pinto, Renato R."]
[Black "Narayanan.S.L"]
[WhiteFideId "2117568"]
[BlackFideId "5058422"]
[WhiteElo "2439"]
[BlackElo "2617"]
[Result "0-1"]
[Round "06"]
[TimeControl "180+1"]
[Date "2021.07.20"]
[WhiteClock "0:00:10"]
[BlackClock "0:00:21"]

1. d4 {[%clk 0:03:00]}  e6 {[%clk 0:02:59]} 2. c4 {[%clk 0:02:58]}  f5 {[%clk 0:02:58]} 3. g3 {[%clk 0:02:58]}  Nf6 {[%clk 0:02:58]} 4. Bg2 {[%clk 0:02:58]}  d5 {[%clk 0:02:59]} 5. Nf3 {[%clk 0:02:57]}  c6 {[%clk 0:02:59]} 6. O-O {[%clk 0:02:56]}  Bd6 {[%clk 0:03:00]} 7. b3 {[%clk 0:02:57]}  Qe7 {[%clk 0:03:00]} 8. Bb2 {[%clk 0:02:56]}  b6 {[%clk 0:02:59]} 9. Nbd2 {[%clk 0:02:55]}  Bb7 {[%clk 0:02:59]} 10. Ne5 {[%clk 0:02:53]}  a5 {[%clk 0:02:57]} 11. Rc1 {[%clk 0:02:49]}  O-O {[%clk 0:02:57]} 12. Ndf3 {[%clk 0:02:49]}  Ne4 {[%clk 0:02:56]} 13. Nd3 {[%clk 0:02:40]}  Nd7 {[%clk 0:02:55]} 14. Nfe5 {[%clk 0:02:32]}  Nxe5 {[%clk 0:02:55]} 15. dxe5 {[%clk 0:02:29]}  Ba3 {[%clk 0:02:52]} 16. cxd5 {[%clk 0:02:20]}  exd5 {[%clk 0:02:43]} 17. Bxa3 {[%clk 0:02:16]}  Qxa3 {[%clk 0:02:43]} 18. f3 {[%clk 0:02:12]}  Ng5 {[%clk 0:02:41]} 19. Qd2 {[%clk 0:01:50]}  Ne6 {[%clk 0:02:39]} 20. e4 {[%clk 0:01:49]}  dxe4 {[%clk 0:01:46]} 21. fxe4 {[%clk 0:01:50]}  Rad8 {[%clk 0:01:46]} 22. exf5 {[%clk 0:01:49]}  Nc5 {[%clk 0:01:46]} 23. Qb2 {[%clk 0:01:48]}  Qxb2 {[%clk 0:01:45]} 24. Nxb2 {[%clk 0:01:49]}  Rd2 {[%clk 0:01:44]} 25. Nc4 {[%clk 0:01:48]}  Rxa2 {[%clk 0:01:44]} 26. Nxb6 {[%clk 0:01:44]}  Nd3 {[%clk 0:01:44]} 27. Rcd1 {[%clk 0:01:25]}  Nxe5 {[%clk 0:01:44]} 28. Rfe1 {[%clk 0:01:25]}  Rxf5 {[%clk 0:01:28]} 29. Be4 {[%clk 0:00:22]}  Rff2 {[%clk 0:01:21]} 30. Nd7 {[%clk 0:00:17]}  Nxd7 {[%clk 0:00:50]} 31. Rxd7 {[%clk 0:00:18]}  Ba6 {[%clk 0:00:50]} 32. Rd8+ {[%clk 0:00:13]}  Kf7 {[%clk 0:00:49]} 33. Bxc6 {[%clk 0:00:13]}  Rxh2 {[%clk 0:00:41]} 34. Rd6 {[%clk 0:00:13]}  g6 {[%clk 0:00:32]} 35. Bd5+ {[%clk 0:00:13]}  Kg7 {[%clk 0:00:32]} 36. Rxa6 {[%clk 0:00:14]}  Rhd2 {[%clk 0:00:33]} 37. Bf3 {[%clk 0:00:13]}  Rd3 {[%clk 0:00:32]} 38. Rf1 {[%clk 0:00:12]}  Rxb3 {[%clk 0:00:31]} 39. Ra7+ {[%clk 0:00:12]}  Kh6 {[%clk 0:00:31]} 40. Rf2 {[%clk 0:00:12]}  Raa3 {[%clk 0:00:27]} 41. Kg2 {[%clk 0:00:13]}  a4 {[%clk 0:00:28]} 42. Ra5 {[%clk 0:00:10]}  Rb4 {[%clk 0:00:24]} 43. Ra7 {[%clk 0:00:10]}  Rc3 {[%clk 0:00:23]} 44. Bd5 {[%clk 0:00:10]}  Rd4 {[%clk 0:00:21]} 45. Bg8 {[%clk 0:00:09]}  Rdd3 {[%clk 0:00:21]} 46. Rxh7+ {[%clk 0:00:09]}  Kg5 {[%clk 0:00:21]} 47. Rf3 {[%clk 0:00:10]}  Rxf3 {[%clk 0:00:21]} 0-1


[Site "https://www.chess.com"]

[Event "Titled Tuesday Blitz July 20 2021"]
[White "Quparadze, Giga"]
[Black "Turgut, Aydin"]
[WhiteFideId "13602250"]
[BlackFideId "2078791"]
[WhiteElo "2658"]
[BlackElo "2138"]
[Result "1-0"]
[Round "06"]
[TimeControl "180+1"]
[Date "2021.07.20"]
[WhiteClock "0:02:19"]
[BlackClock "0:00:08"]

1. e4 {[%clk 0:03:00]}  e5 {[%clk 0:03:00]} 2. Nf3 {[%clk 0:03:00]}  Nc6 {[%clk 0:03:00]} 3. Bb5 {[%clk 0:03:00]}  a6 {[%clk 0:03:00]} 4. Ba4 {[%clk 0:03:00]}  Nf6 {[%clk 0:03:01]} 5. Nc3 {[%clk 0:03:00]}  b5 {[%clk 0:02:55]} 6. Bb3 {[%clk 0:03:00]}  Bc5 {[%clk 0:02:55]} 7. Qe2 {[%clk 0:02:57]}  d6 {[%clk 0:02:47]} 8. Nd5 {[%clk 0:02:55]}  Rb8 {[%clk 0:02:36]} 9. c3 {[%clk 0:02:54]}  h6 {[%clk 0:02:17]} 10. d3 {[%clk 0:02:51]}  O-O {[%clk 0:02:13]} 11. Be3 {[%clk 0:02:50]}  Bxe3 {[%clk 0:02:08]} 12. Nxf6+ {[%clk 0:02:50]}  Qxf6 {[%clk 0:02:07]} 13. fxe3 {[%clk 0:02:51]}  Be6 {[%clk 0:02:04]} 14. O-O {[%clk 0:02:51]}  Qe7 {[%clk 0:01:48]} 15. Qf2 {[%clk 0:02:48]}  f5 {[%clk 0:01:24]} 16. Nh4 {[%clk 0:02:45]}  Kh7 {[%clk 0:00:18]} 17. exf5 {[%clk 0:02:41]}  Bf7 {[%clk 0:00:11]} 18. Qg3 {[%clk 0:02:37]}  Qf6 {[%clk 0:00:11]} 19. e4 {[%clk 0:02:33]}  Ne7 {[%clk 0:00:11]} 20. Bxf7 {[%clk 0:02:31]}  Rxf7 {[%clk 0:00:11]} 21. Nf3 {[%clk 0:02:25]}  Rd8 {[%clk 0:00:08]} 22. d4 {[%clk 0:02:25]}  exd4 {[%clk 0:00:06]} 23. cxd4 {[%clk 0:02:25]}  Nc6 {[%clk 0:00:06]} 24. Rad1 {[%clk 0:02:22]}  Qe7 {[%clk 0:00:05]} 25. Qg6+ {[%clk 0:02:20]}  Kh8 {[%clk 0:00:05]} 26. e5 {[%clk 0:02:21]}  dxe5 {[%clk 0:00:05]} 27. Qxc6 {[%clk 0:02:20]}  e4 {[%clk 0:00:05]} 28. Ne5 {[%clk 0:02:20]}  Rf6 {[%clk 0:00:05]} 29. Ng6+ {[%clk 0:02:20]}  Rxg6 {[%clk 0:00:04]} 30. Qxg6 {[%clk 0:02:21]}  e3 {[%clk 0:00:05]} 31. f6 {[%clk 0:02:20]}  gxf6 {[%clk 0:00:05]} 32. Qxh6+ {[%clk 0:02:20]}  Kg8 {[%clk 0:00:06]} 33. Rxf6 {[%clk 0:02:20]}  e2 {[%clk 0:00:05]} 34. Rg6+ {[%clk 0:02:19]}  Kf7 {[%clk 0:00:06]} 35. Rg7+ {[%clk 0:02:19]}  Ke8 {[%clk 0:00:07]} 36. Rxe7+ {[%clk 0:02:19]}  Kxe7 {[%clk 0:00:08]} 1-0


[Site "https://www.chess.com"]

[Event "Titled Tuesday Blitz July 20 2021"]
[White "Rodriguez Hernandez, Luis Daniel"]
[Black "Sjugirov, Sanan"]
[WhiteFideId "3506770"]
[BlackFideId "4189302"]
[WhiteElo "2133"]
[BlackElo "2472"]
[Result "1-0"]
[Round "06"]
[TimeControl "180+1"]
[Date "2021.07.20"]
[WhiteClock "0:00:04"]
[BlackClock "0:00:01"]

1. e4 {[%clk 0:03:00]}  c6 {[%clk 0:03:00]} 2. d4 {[%clk 0:02:59]}  d5 {[%clk 0:03:00]} 3. Nc3 {[%clk 0:02:59]}  dxe4 {[%clk 0:03:00]} 4. Nxe4 {[%clk 0:03:00]}  Nf6 {[%clk 0:03:00]} 5. Nxf6+ {[%clk 0:03:00]}  exf6 {[%clk 0:03:01]} 6. c3 {[%clk 0:03:00]}  Bd6 {[%clk 0:03:02]} 7. Bd3 {[%clk 0:03:00]}  O-O {[%clk 0:03:02]} 8. Qc2 {[%clk 0:03:01]}  Re8+ {[%clk 0:03:02]} 9. Ne2 {[%clk 0:03:02]}  h5 {[%clk 0:03:01]} 10. Be3 {[%clk 0:03:02]}  Nd7 {[%clk 0:02:57]} 11. Ng3 {[%clk 0:03:03]}  Qa5 {[%clk 0:02:40]} 12. b4 {[%clk 0:02:58]}  Qd5 {[%clk 0:02:40]} 13. Be4 {[%clk 0:02:46]}  Qe6 {[%clk 0:02:34]} 14. Bh7+ {[%clk 0:02:42]}  Kh8 {[%clk 0:02:32]} 15. Nxh5 {[%clk 0:02:15]}  Nb6 {[%clk 0:02:32]} 16. Ng3 {[%clk 0:01:57]}  Nd5 {[%clk 0:02:20]} 17. Be4 {[%clk 0:01:46]}  Nxe3 {[%clk 0:02:14]} 18. fxe3 {[%clk 0:01:46]}  f5 {[%clk 0:02:13]} 19. Nxf5 {[%clk 0:01:34]}  Bc7 {[%clk 0:02:01]} 20. Ng3 {[%clk 0:01:07]}  Qh6 {[%clk 0:01:42]} 21. O-O-O {[%clk 0:00:52]}  Qxe3+ {[%clk 0:01:37]} 22. Kb2 {[%clk 0:00:51]}  Qh6 {[%clk 0:01:22]} 23. Bf5 {[%clk 0:00:48]}  Kg8 {[%clk 0:00:53]} 24. Rhe1 {[%clk 0:00:34]}  Bxf5 {[%clk 0:00:43]} 25. Nxf5 {[%clk 0:00:28]}  Qf6 {[%clk 0:00:41]} 26. g4 {[%clk 0:00:26]}  g6 {[%clk 0:00:35]} 27. Ne3 {[%clk 0:00:25]}  Qh4 {[%clk 0:00:33]} 28. Re2 {[%clk 0:00:19]}  a5 {[%clk 0:00:32]} 29. a3 {[%clk 0:00:18]}  axb4 {[%clk 0:00:32]} 30. axb4 {[%clk 0:00:19]}  Qh3 {[%clk 0:00:24]} 31. Rd3 {[%clk 0:00:16]}  Qf3 {[%clk 0:00:21]} 32. Re1 {[%clk 0:00:07]}  Qe4 {[%clk 0:00:17]} 33. Ng2 {[%clk 0:00:05]}  Qxg4 {[%clk 0:00:14]} 34. Rxe8+ {[%clk 0:00:06]}  Rxe8 {[%clk 0:00:14]} 35. Rd2 {[%clk 0:00:06]}  Bxh2 {[%clk 0:00:11]} 36. Ne3 {[%clk 0:00:06]}  Rxe3 {[%clk 0:00:11]} 37. Rxh2 {[%clk 0:00:07]}  Rh3 {[%clk 0:00:06]} 38. Rg2 {[%clk 0:00:07]}  Qe6 {[%clk 0:00:05]} 39. Re2 {[%clk 0:00:07]}  Qd7 {[%clk 0:00:05]} 40. Qe4 {[%clk 0:00:07]}  Kg7 {[%clk 0:00:05]} 41. Qe5+ {[%clk 0:00:07]}  Kh7 {[%clk 0:00:06]} 42. Rf2 {[%clk 0:00:05]}  Kg8 {[%clk 0:00:04]} 43. Qb8+ {[%clk 0:00:05]}  Kg7 {[%clk 0:00:04]} 44. Qe5+ {[%clk 0:00:05]}  Kg8 {[%clk 0:00:03]} 45. Qb8+ {[%clk 0:00:05]}  Kg7 {[%clk 0:00:03]} 46. Qe5+ {[%clk 0:00:06]}  Kh7 {[%clk 0:00:04]} 47. Qb8 {[%clk 0:00:06]}  Rh5 {[%clk 0:00:03]} 48. Qf8 {[%clk 0:00:04]}  f5 {[%clk 0:00:01]} 49. Re2 {[%clk 0:00:04]} 1-0


[Site "https://www.chess.com"]

[Event "Titled Tuesday Blitz July 20 2021"]
[White "Samsonkin, Artiom"]
[Black "Tsyhanchuk_Stanislav"]
[WhiteFideId "13503111"]
[WhiteElo "2513"]
[BlackElo "2486"]
[Result "1-0"]
[Round "06"]
[TimeControl "180+1"]
[Date "2021.07.21"]
[WhiteClock "0:00:55"]
[BlackClock "0:00:02"]

1. e4 {[%clk 0:03:00]}  c5 {[%clk 0:02:48]} 2. Nf3 {[%clk 0:03:00]}  Nc6 {[%clk 0:02:48]} 3. Bb5 {[%clk 0:03:00]}  Qb6 {[%clk 0:02:48]} 4. Nc3 {[%clk 0:02:52]}  e6 {[%clk 0:02:48]} 5. O-O {[%clk 0:02:51]}  Nge7 {[%clk 0:02:47]} 6. b3 {[%clk 0:02:41]}  a6 {[%clk 0:02:47]} 7. Bxc6 {[%clk 0:02:41]}  Qxc6 {[%clk 0:02:47]} 8. Bb2 {[%clk 0:02:37]}  Ng6 {[%clk 0:02:44]} 9. d4 {[%clk 0:02:38]}  cxd4 {[%clk 0:02:43]} 10. Nxd4 {[%clk 0:02:39]}  Qc7 {[%clk 0:02:44]} 11. Re1 {[%clk 0:02:34]}  Bb4 {[%clk 0:02:22]} 12. Re3 {[%clk 0:02:11]}  O-O {[%clk 0:02:12]} 13. Nf5 {[%clk 0:01:50]}  exf5 {[%clk 0:01:08]} 14. Nd5 {[%clk 0:01:49]}  Qd6 {[%clk 0:00:56]} 15. exf5 {[%clk 0:01:19]}  Bc5 {[%clk 0:00:38]} 16. Rg3 {[%clk 0:01:10]}  Ne5 {[%clk 0:00:02]} 17. f6 {[%clk 0:00:55]} 1-0


[Site "https://www.chess.com"]

[Event "Titled Tuesday Blitz July 20 2021"]
[White "Silich, Yahor"]
[Black "Molina, Roberto Junio Brito"]
[WhiteFideId "13513656"]
[BlackFideId "2109450"]
[WhiteElo "2142"]
[BlackElo "2402"]
[Result "0-1"]
[Round "06"]
[TimeControl "180+1"]
[Date "2021.07.21"]
[WhiteClock "0:00:48"]
[BlackClock "0:01:23"]

1. e4 {[%clk 0:03:00]}  c5 {[%clk 0:02:56]} 2. Nf3 {[%clk 0:03:01]}  e6 {[%clk 0:02:55]} 3. Nc3 {[%clk 0:03:01]}  Nc6 {[%clk 0:02:54]} 4. g3 {[%clk 0:03:00]}  Nf6 {[%clk 0:02:53]} 5. Bg2 {[%clk 0:02:58]}  d5 {[%clk 0:02:43]} 6. exd5 {[%clk 0:02:57]}  Nxd5 {[%clk 0:02:42]} 7. Nxd5 {[%clk 0:02:56]}  Qxd5 {[%clk 0:02:40]} 8. O-O {[%clk 0:02:48]}  Be7 {[%clk 0:02:32]} 9. Re1 {[%clk 0:02:44]}  Qd6 {[%clk 0:02:29]} 10. d3 {[%clk 0:02:27]}  O-O {[%clk 0:02:27]} 11. Bf4 {[%clk 0:02:27]}  Qd8 {[%clk 0:02:26]} 12. Ne5 {[%clk 0:02:23]}  Nxe5 {[%clk 0:02:25]} 13. Bxe5 {[%clk 0:02:24]}  Bf6 {[%clk 0:02:19]} 14. Qe2 {[%clk 0:02:24]}  Bxe5 {[%clk 0:02:03]} 15. Qxe5 {[%clk 0:02:25]}  Qb6 {[%clk 0:02:01]} 16. a4 {[%clk 0:02:08]}  a5 {[%clk 0:01:35]} 17. b3 {[%clk 0:02:02]}  Bd7 {[%clk 0:01:26]} 18. Rad1 {[%clk 0:01:57]}  Bc6 {[%clk 0:01:15]} 19. Be4 {[%clk 0:01:43]}  Rad8 {[%clk 0:01:11]} 20. Qc3 {[%clk 0:01:41]}  Qb4 {[%clk 0:00:57]} 21. Qxb4 {[%clk 0:01:34]}  cxb4 {[%clk 0:00:58]} 22. Bxc6 {[%clk 0:01:34]}  bxc6 {[%clk 0:00:58]} 23. Re5 {[%clk 0:01:35]}  Rd5 {[%clk 0:00:57]} 24. Rde1 {[%clk 0:01:36]}  Rfd8 {[%clk 0:00:55]} 25. f4 {[%clk 0:01:35]}  g6 {[%clk 0:00:54]} 26. Kf2 {[%clk 0:01:33]}  Kf8 {[%clk 0:00:54]} 27. R1e4 {[%clk 0:01:33]}  Ke7 {[%clk 0:00:54]} 28. Re1 {[%clk 0:01:27]}  Kd6 {[%clk 0:00:51]} 29. R5e4 {[%clk 0:01:25]}  Kc7 {[%clk 0:00:51]} 30. Rc4 {[%clk 0:01:25]}  Kb6 {[%clk 0:00:51]} 31. Kf3 {[%clk 0:01:21]}  h5 {[%clk 0:00:51]} 32. h3 {[%clk 0:01:21]}  Rh8 {[%clk 0:00:49]} 33. Re2 {[%clk 0:01:15]}  Rg8 {[%clk 0:00:46]} 34. Re5 {[%clk 0:01:08]}  Rgd8 {[%clk 0:00:44]} 35. Ree4 {[%clk 0:01:05]}  Rh8 {[%clk 0:00:44]} 36. Re1 {[%clk 0:00:52]}  Rg8 {[%clk 0:00:43]} 37. Rh1 {[%clk 0:00:51]}  Rh8 {[%clk 0:00:43]} 38. Rh2 {[%clk 0:00:50]}  Rhd8 {[%clk 0:00:40]} 39. Re2 {[%clk 0:00:46]}  Rh8 {[%clk 0:00:40]} 40. Re3 {[%clk 0:00:26]}  Rg8 {[%clk 0:00:40]} 41. Re5 {[%clk 0:00:25]}  Rgd8 {[%clk 0:00:39]} 42. Re1 {[%clk 0:00:25]}  R8d7 {[%clk 0:00:38]} 43. Re2 {[%clk 0:00:25]}  Rc7 {[%clk 0:00:38]} 44. Re3 {[%clk 0:00:25]}  Rb7 {[%clk 0:00:39]} 45. Re2 {[%clk 0:00:25]}  Rb8 {[%clk 0:00:40]} 46. Re1 {[%clk 0:00:25]}  Rh8 {[%clk 0:00:40]} 47. Re2 {[%clk 0:00:25]}  Rg8 {[%clk 0:00:41]} 48. Re1 {[%clk 0:00:26]}  g5 {[%clk 0:00:41]} 49. Re5 {[%clk 0:00:25]}  gxf4 {[%clk 0:00:33]} 50. gxf4 {[%clk 0:00:22]}  Rg1 {[%clk 0:00:31]} 51. Kf2 {[%clk 0:00:15]}  Rh1 {[%clk 0:00:25]} 52. Kg2 {[%clk 0:00:15]}  Rc1 {[%clk 0:00:25]} 53. Kf2 {[%clk 0:00:14]}  Rb1 {[%clk 0:00:23]} 54. Kg2 {[%clk 0:00:14]}  h4 {[%clk 0:00:19]} 55. Kf2 {[%clk 0:00:11]}  Rh1 {[%clk 0:00:19]} 56. Kg2 {[%clk 0:00:12]}  Rd1 {[%clk 0:00:18]} 57. Kf2 {[%clk 0:00:11]}  Kc7 {[%clk 0:00:15]} 58. Kf3 {[%clk 0:00:11]}  Rg1 {[%clk 0:00:15]} 59. Rxd5 {[%clk 0:00:08]}  exd5 {[%clk 0:00:15]} 60. Rc5 {[%clk 0:00:08]}  Kb6 {[%clk 0:00:15]} 61. d4 {[%clk 0:00:09]}  Rg3+ {[%clk 0:00:14]} 62. Kf2 {[%clk 0:00:09]}  Rxh3 {[%clk 0:00:15]} 63. Kg2 {[%clk 0:00:05]}  Re3 {[%clk 0:00:15]} 64. Kf2 {[%clk 0:00:05]}  Rg3 {[%clk 0:00:15]} 65. f5 {[%clk 0:00:03]}  f6 {[%clk 0:00:16]} 66. Ke2 {[%clk 0:00:02]}  h3 {[%clk 0:00:16]} 67. Kf2 {[%clk 0:00:03]}  Rg5 {[%clk 0:00:15]} 68. c3 {[%clk 0:00:02]}  h2 {[%clk 0:00:14]} 69. cxb4 {[%clk 0:00:02]}  axb4 {[%clk 0:00:15]} 70. Rc1 {[%clk 0:00:01]}  Rxf5+ {[%clk 0:00:10]} 71. Kg2 {[%clk 0:00:02]}  Rh5 {[%clk 0:00:10]} 72. Kh1 {[%clk 0:00:02]}  Rh4 {[%clk 0:00:10]} 73. a5+ {[%clk 0:00:02]}  Kb7 {[%clk 0:00:10]} 74. a6+ {[%clk 0:00:01]}  Kb6 {[%clk 0:00:08]} 75. a7 {[%clk 0:00:02]}  Rh8 {[%clk 0:00:08]} 76. Ra1 {[%clk 0:00:01]}  Ra8 {[%clk 0:00:08]} 77. Kxh2 {[%clk 0:00:02]}  Rxa7 {[%clk 0:00:09]} 78. Rf1 {[%clk 0:00:02]}  Ra3 {[%clk 0:00:08]} 79. Rf3 {[%clk 0:00:01]}  Ra2+ {[%clk 0:00:09]} 80. Kg3 {[%clk 0:00:01]}  Rd2 {[%clk 0:00:09]} 81. Kf4 {[%clk 0:00:01]}  Rxd4+ {[%clk 0:00:09]} 82. Kf5 {[%clk 0:00:02]}  Rd1 {[%clk 0:00:09]} 83. Kxf6 {[%clk 0:00:02]}  Rc1 {[%clk 0:00:09]} 84. Ke5 {[%clk 0:00:02]}  Rc3 {[%clk 0:00:09]} 85. Rf6 {[%clk 0:00:02]}  Rxb3 {[%clk 0:00:09]} 86. Kd4 {[%clk 0:00:03]}  Rc3 {[%clk 0:00:10]} 87. Rf1 {[%clk 0:00:02]}  Rc4+ {[%clk 0:00:10]} 88. Kd3 {[%clk 0:00:02]}  Kb5 {[%clk 0:00:11]} 89. Ra1 {[%clk 0:00:03]}  b3 {[%clk 0:00:11]} 90. Ra8 {[%clk 0:00:03]}  Kb4 {[%clk 0:00:12]} 91. Rb8+ {[%clk 0:00:04]}  Ka3 {[%clk 0:00:12]} 92. Kd2 {[%clk 0:00:04]}  Ka2 {[%clk 0:00:12]} 93. Ra8+ {[%clk 0:00:04]}  Kb1 {[%clk 0:00:12]} 94. Rb8 {[%clk 0:00:05]}  b2 {[%clk 0:00:13]} 95. Kd1 {[%clk 0:00:05]}  c5 {[%clk 0:00:13]} 96. Rd8 {[%clk 0:00:05]}  Rd4+ {[%clk 0:00:11]} 97. Ke2 {[%clk 0:00:05]}  Kc2 {[%clk 0:00:12]} 98. Rc8 {[%clk 0:00:05]}  Re4+ {[%clk 0:00:12]} 99. Kf2 {[%clk 0:00:05]}  c4 {[%clk 0:00:13]} 100. Rc5 {[%clk 0:00:06]}  c3 {[%clk 0:00:13]} 101. Rxd5 {[%clk 0:00:07]}  b1=Q {[%clk 0:00:12]} 102. Rf5 {[%clk 0:00:08]}  Qe1+ {[%clk 0:00:11]} 103. Kf3 {[%clk 0:00:08]}  Qe2+ {[%clk 0:00:11]} 104. Kg3 {[%clk 0:00:07]}  Qg4+ {[%clk 0:00:11]} 105. Kf2 {[%clk 0:00:07]}  Qxf5+ {[%clk 0:00:11]} 106. Kg3 {[%clk 0:00:08]}  Rg4+ {[%clk 0:00:11]} 107. Kh3 {[%clk 0:00:08]}  Qg6 {[%clk 0:00:12]} 108. Kh2 {[%clk 0:00:02]}  Kb3 {[%clk 0:00:13]} 109. Kh3 {[%clk 0:00:01]}  Kb4 {[%clk 0:00:14]} 110. Kh2 {[%clk 0:00:01]}  Kc5 {[%clk 0:00:14]} 111. Kh3 {[%clk 0:00:01]}  Kd6 {[%clk 0:00:15]} 112. Kh2 {[%clk 0:00:01]}  Ke5 {[%clk 0:00:16]} 113. Kh3 {[%clk 0:00:02]}  Kd5 {[%clk 0:00:17]} 114. Kh2 {[%clk 0:00:03]}  Kc6 {[%clk 0:00:18]} 115. Kh3 {[%clk 0:00:04]}  Kb7 {[%clk 0:00:19]} 116. Kh2 {[%clk 0:00:05]}  Kb8 {[%clk 0:00:20]} 117. Kh3 {[%clk 0:00:06]}  Kc8 {[%clk 0:00:21]} 118. Kh2 {[%clk 0:00:07]}  Kd8 {[%clk 0:00:22]} 119. Kh3 {[%clk 0:00:08]}  Ke8 {[%clk 0:00:23]} 120. Kh2 {[%clk 0:00:09]}  Kf8 {[%clk 0:00:23]} 121. Kh3 {[%clk 0:00:09]}  Kg8 {[%clk 0:00:24]} 122. Kh2 {[%clk 0:00:01]}  Kh8 {[%clk 0:00:25]} 123. Kh3 {[%clk 0:00:02]}  Kh7 {[%clk 0:00:26]} 124. Kh2 {[%clk 0:00:03]}  Kg7 {[%clk 0:00:27]} 125. Kh3 {[%clk 0:00:04]}  c2 {[%clk 0:00:28]} 126. Kh2 {[%clk 0:00:05]}  Kf6 {[%clk 0:00:29]} 127. Kh3 {[%clk 0:00:06]}  Kf7 {[%clk 0:00:30]} 128. Kh2 {[%clk 0:00:06]}  Ke6 {[%clk 0:00:31]} 129. Kh3 {[%clk 0:00:07]}  Ke7 {[%clk 0:00:32]} 130. Kh2 {[%clk 0:00:08]}  Kd7 {[%clk 0:00:32]} 131. Kh3 {[%clk 0:00:09]}  Kc6 {[%clk 0:00:33]} 132. Kh2 {[%clk 0:00:10]}  Kb5 {[%clk 0:00:34]} 133. Kh3 {[%clk 0:00:11]}  Kb4 {[%clk 0:00:35]} 134. Kh2 {[%clk 0:00:12]}  Ka4 {[%clk 0:00:36]} 135. Kh3 {[%clk 0:00:13]}  Qg5 {[%clk 0:00:36]} 136. Kh2 {[%clk 0:00:13]}  Ka5 {[%clk 0:00:36]} 137. Kh3 {[%clk 0:00:02]}  Ka6 {[%clk 0:00:37]} 138. Kh2 {[%clk 0:00:02]}  Kb7 {[%clk 0:00:38]} 139. Kh3 {[%clk 0:00:03]}  Kb6 {[%clk 0:00:39]} 140. Kh2 {[%clk 0:00:04]}  Kc5 {[%clk 0:00:40]} 141. Kh3 {[%clk 0:00:05]}  Kd4 {[%clk 0:00:41]} 142. Kh2 {[%clk 0:00:05]}  Kd3 {[%clk 0:00:42]} 143. Kh3 {[%clk 0:00:06]}  Kd2 {[%clk 0:00:43]} 144. Kh2 {[%clk 0:00:07]}  Kd1 {[%clk 0:00:43]} 145. Kh3 {[%clk 0:00:08]}  c1=Q {[%clk 0:00:44]} 146. Kh2 {[%clk 0:00:08]}  Qc8 {[%clk 0:00:45]} 147. Kh3 {[%clk 0:00:09]}  Qcd8 {[%clk 0:00:46]} 148. Kh2 {[%clk 0:00:09]}  Kc2 {[%clk 0:00:47]} 149. Kh3 {[%clk 0:00:10]}  Kb2 {[%clk 0:00:48]} 150. Kh2 {[%clk 0:00:11]}  Kb3 {[%clk 0:00:49]} 151. Kh3 {[%clk 0:00:12]}  Ka3 {[%clk 0:00:50]} 152. Kh2 {[%clk 0:00:01]}  Ka4 {[%clk 0:00:51]} 153. Kh3 {[%clk 0:00:02]}  Ka5 {[%clk 0:00:51]} 154. Kh2 {[%clk 0:00:03]}  Kb4 {[%clk 0:00:52]} 155. Kh3 {[%clk 0:00:04]}  Kb5 {[%clk 0:00:53]} 156. Kh2 {[%clk 0:00:04]}  Kb6 {[%clk 0:00:54]} 157. Kh3 {[%clk 0:00:05]}  Kc5 {[%clk 0:00:55]} 158. Kh2 {[%clk 0:00:06]}  Kc6 {[%clk 0:00:56]} 159. Kh3 {[%clk 0:00:07]}  Kd5 {[%clk 0:00:57]} 160. Kh2 {[%clk 0:00:08]}  Kd6 {[%clk 0:00:58]} 161. Kh3 {[%clk 0:00:09]}  Ke5 {[%clk 0:00:59]} 162. Kh2 {[%clk 0:00:10]}  Ke6 {[%clk 0:01:00]} 163. Kh3 {[%clk 0:00:11]}  Rg3+ {[%clk 0:00:54]} 164. Kh2 {[%clk 0:00:11]}  Ke5 {[%clk 0:00:50]} 165. Kh1 {[%clk 0:00:12]}  Kd5 {[%clk 0:00:51]} 166. Kh2 {[%clk 0:00:13]}  Kd6 {[%clk 0:00:51]} 167. Kh1 {[%clk 0:00:14]}  Kc5 {[%clk 0:00:52]} 168. Kh2 {[%clk 0:00:15]}  Kc6 {[%clk 0:00:53]} 169. Kh1 {[%clk 0:00:16]}  Kb5 {[%clk 0:00:54]} 170. Kh2 {[%clk 0:00:17]}  Kb6 {[%clk 0:00:55]} 171. Kh1 {[%clk 0:00:17]}  Ka5 {[%clk 0:00:53]} 172. Kh2 {[%clk 0:00:18]}  Rh3+ {[%clk 0:00:49]} 173. Kxh3 {[%clk 0:00:16]}  Qdg8 {[%clk 0:00:50]} 174. Kh2 {[%clk 0:00:16]}  Kb6 {[%clk 0:00:51]} 175. Kh3 {[%clk 0:00:16]}  Kb5 {[%clk 0:00:52]} 176. Kh2 {[%clk 0:00:17]}  Kc6 {[%clk 0:00:53]} 177. Kh3 {[%clk 0:00:18]}  Kc5 {[%clk 0:00:54]} 178. Kh2 {[%clk 0:00:19]}  Kd6 {[%clk 0:00:54]} 179. Kh3 {[%clk 0:00:20]}  Kd5 {[%clk 0:00:55]} 180. Kh2 {[%clk 0:00:21]}  Kc4 {[%clk 0:00:56]} 181. Kh3 {[%clk 0:00:22]}  Kb3 {[%clk 0:00:57]} 182. Kh2 {[%clk 0:00:23]}  Ka2 {[%clk 0:00:58]} 183. Kh3 {[%clk 0:00:24]}  Ka1 {[%clk 0:00:59]} 184. Kh2 {[%clk 0:00:24]}  Kb1 {[%clk 0:01:00]} 185. Kh3 {[%clk 0:00:25]}  Kb2 {[%clk 0:01:01]} 186. Kh2 {[%clk 0:00:26]}  Kc1 {[%clk 0:01:02]} 187. Kh1 {[%clk 0:00:27]}  Kc2 {[%clk 0:01:03]} 188. Kh2 {[%clk 0:00:28]}  Kd1 {[%clk 0:01:03]} 189. Kh3 {[%clk 0:00:29]}  Kd2 {[%clk 0:01:04]} 190. Kh2 {[%clk 0:00:30]}  Ke2 {[%clk 0:01:05]} 191. Kh1 {[%clk 0:00:31]}  Ke3 {[%clk 0:01:06]} 192. Kh2 {[%clk 0:00:32]}  Kd3 {[%clk 0:01:07]} 193. Kh3 {[%clk 0:00:33]}  Ke4 {[%clk 0:01:08]} 194. Kh2 {[%clk 0:00:33]}  Q8g7 {[%clk 0:01:09]} 195. Kh1 {[%clk 0:00:34]}  Ke5 {[%clk 0:01:10]} 196. Kh2 {[%clk 0:00:35]}  Kd5 {[%clk 0:01:10]} 197. Kh3 {[%clk 0:00:36]}  Ke6 {[%clk 0:01:11]} 198. Kh2 {[%clk 0:00:37]}  Ke7 {[%clk 0:01:12]} 199. Kh1 {[%clk 0:00:38]}  Kd6 {[%clk 0:01:13]} 200. Kh2 {[%clk 0:00:39]}  Kd7 {[%clk 0:01:14]} 201. Kh3 {[%clk 0:00:40]}  Kc6 {[%clk 0:01:15]} 202. Kh2 {[%clk 0:00:41]}  Kc7 {[%clk 0:01:16]} 203. Kh1 {[%clk 0:00:42]}  Kb6 {[%clk 0:01:17]} 204. Kh2 {[%clk 0:00:42]}  Kb7 {[%clk 0:01:18]} 205. Kh3 {[%clk 0:00:43]}  Ka6 {[%clk 0:01:18]} 206. Kh2 {[%clk 0:00:44]}  Ka7 {[%clk 0:01:19]} 207. Kh1 {[%clk 0:00:45]}  Ka8 {[%clk 0:01:20]} 208. Kh2 {[%clk 0:00:46]}  Kb8 {[%clk 0:01:21]} 209. Kh3 {[%clk 0:00:47]}  Kc8 {[%clk 0:01:22]} 210. Kh2 {[%clk 0:00:48]}  Q7h6# {[%clk 0:01:23]} 0-1


[Site "https://www.chess.com"]